[Event "TUR-ch Veterans 2019"]
[Site "Belek"]
[Date "2019.01.21"]
[Round "2.1"]
[White "Tofan, Ibrahim"]
[Black "Onem, Cem"]
[Result "1/2-1/2"]
[ECO "C54"]
[WhiteElo "2070"]
[BlackElo "1840"]
[Annotator "NA"]
[PlyCount "147"]
[EventDate "2019.01.20"]
[EventType "swiss"]
[EventCountry "TUR"]
[SourceTitle "playchess.com"]
[Source "ChessBase"]
[SourceQuality "1"]
[TimeControl "5400+30"]

1. e4 {[%emt 0:00:30]} e5 {[%emt 0:02:30]} 2. Nf3 {[%emt 0:00:30]} Nc6 {[%emt 0:00:30]} 3. Bc4 {[%emt 0:00:30]} Bc5 {[%emt 0:00:30]} 4. c3 {[%emt 0:00:30]} Nf6 {[%emt 0:00:30]} 5. d3 {[%emt 0:00:30]} d6 {[%emt 0:00:30]} 6. a4 {[%emt 0:00:30]} a6 {[%emt 0:00:30]} 7. O-O {[%emt 0:00:30]} O-O {[%emt 0:01:30]} 8. Na3 {[%emt 0:03:30] C54: Giuoco Piano: 4 c3 Nf6, main lines with 5 d4 and 5 d3} (8. h3 Ba7 9. Re1 Ne7 10. d4 Ng6 11. Nbd2 c6 12. b4 exd4 13. cxd4 d5 14. Bd3 dxe4 15. Nxe4 Nxe4 16. Bxe4 {½-½ (24) Malakhov,V (2666)-Tomashevsky,E (2702) Biograd 2018}) 8... Ba7 {[%emt 0:04:30]} 9. Bg5 {[%emt 0:01:30]} h6 {[%emt 0:00:30]} 10. Bh4 {[%emt 0:04:30] LiveBook: 13 Games} Bg4 {[%emt 0:06:30]} 11. h3 {[%emt 0:05:30]} Bxf3 $146 {[%emt 0:03:30]} ({Predecessor:} 11... Bh5 12. Bb3 g5 13. Bg3 Kh7 14. Nc2 Rg8 {1-0 (32) Brunello,M (2336)-Guichard,P (2386) Mulhouse 2016}) 12. Qxf3 {[%emt 0:00:30]} g5 {[%emt 0:00:30]} 13. Bg3 {[%emt 0:01:30]} Nh7 {[%emt 0:14:30]} 14. Nc2 {[%emt 0:00:30]} Qf6 {[%emt 0:04:30]} 15. Qe2 {[%emt 0:03:30]} Rad8 {[%emt 0:19:30]} (15... Qg6 $142) 16. Ne3 {[%emt 0:03:30]} (16. Bd5 $142) 16... Ne7 {[%emt 0:00:30]} 17. Rad1 {[%emt 0:03:30]} Qg7 {[%emt 0:17:30]} 18. Nd5 {[%emt 0:10:30]} Nxd5 {[%emt 0:00:30]} 19. Bxd5 {[%emt 0:00:30]} c6 {[%emt 0:00:30]} 20. Ba2 {[%emt 0:01:30]} Kh8 {[%emt 0:06:24]} 21. Kh2 {[%emt 0:02:30]} Rfe8 {[%emt 0:04:08]} 22. f3 {[%emt 0:02:30]} Nf6 {[%emt 0:00:57]} 23. Bf2 {[%emt 0:03:30]} Bxf2 {[%emt 0:00:50]} 24. Qxf2 {[%emt 0:00:30]} Nh5 {[%emt 0:01:03]} 25. d4 {[%emt 0:02:30]} Nf4 {[%emt 0:01:03]} 26. g3 {[%emt 0:00:30]} Ng6 {[%emt 0:00:10]} 27. d5 {[%emt 0:02:30]} c5 {[%emt 0:00:36]} 28. Bc4 {[%emt 0:05:30]} Rc8 {[%emt 0:00:45]} 29. b3 {[%emt 0:04:30]} f6 {[%emt 0:00:10]} 30. Rg1 {[%emt 0:01:30]} Qd7 {[%emt 0:00:15]} 31. a5 {[%emt 0:01:30]} Re7 {[%emt 0:01:11]} 32. Bd3 {[%emt 0:04:30]} Rh7 {[%emt 0:00:14]} 33. Rh1 {[%emt 0:03:30]} h5 {[%emt 0:00:15]} 34. Kg1 {[%emt 0:01:30]} h4 {[%emt 0:00:09]} 35. g4 {[%emt 0:00:00]} Nf4 {[%emt 0:00:10]} 36. Bc4 {[%emt 0:01:00]} Qd8 {[%emt 0:00:33]} 37. Ra1 {[%emt 0:00:30]} Ra8 {[%emt 0:00:19]} 38. Kh2 {[%emt 0:00:30]} Rc7 {[%emt 0:01:02]} 39. Rhc1 {[%emt 0:02:30]} Rcc8 {[%emt 0:00:22]} 40. Qa2 {[%emt 0:01:30]} b6 {[%emt 0:02:51]} 41. axb6 {[%emt 0:00:30]} Qxb6 {[%emt 0:00:15]} 42. Qa5 {[%emt 0:00:30]} Rcb8 {[%emt 0:00:20]} 43. Qxb6 {[%emt 0:00:30]} Rxb6 {[%emt 0:00:08]} 44. Ra5 {[%emt 0:00:30]} Rab8 {[%emt 0:00:29]} 45. Rb1 {[%emt 0:02:30]} Kg7 {[%emt 0:00:26]} 46. Rb2 {[%emt 0:00:30]} Kf7 {[%emt 0:00:57]} 47. Ra3 {[%emt 0:00:30]} Ra8 {[%emt 0:01:22]} 48. Rba2 {[%emt 0:00:30]} Rab8 {[%emt 0:02:05]} 49. Rxa6 {[%emt 0:00:30]} Rxa6 {[%emt 0:01:39]} 50. Rxa6 {[%emt 0:00:30]} Ke7 {[%emt 0:00:07]} 51. Ra4 {[%emt 0:01:30]} Rc8 {[%emt 0:01:43]} 52. Ra7+ {[%emt 0:01:06]} Kf8 {[%emt 0:00:14]} 53. Ra4 {[%emt 0:06:00]} Rc7 {[%emt 0:00:15]} 54. Bb5 {[%emt 0:00:37]} Rb7 {[%emt 0:00:44]} 55. c4 {[%emt 0:01:10]} Ne2 {[%emt 0:00:12]} 56. Ra8+ {[%emt 0:04:23]} Kg7 {[%emt 0:00:34]} 57. Ra6 {[%emt 0:02:11]} Nd4 {[%emt 0:00:13]} 58. Rxd6 {[%emt 0:01:16]} Nxb5 {[%emt 0:01:30]} 59. cxb5 {[%emt 0:00:04]} Rxb5 {[%emt 0:00:06]} 60. Rd7+ {[%emt 0:03:54]} Kf8 $11 {[%emt 0:00:13]} 61. Rc7 {[%emt 0:00:31]} Rxb3 {[%emt 0:00:29]} 62. Kg2 {[%emt 0:00:28]} Rc3 {[%emt 0:00:59]} 63. Kf2 {[%emt 0:00:03]} Ke8 {[%emt 0:00:33]} 64. Ke2 {[%emt 0:00:09]} c4 {[%emt 0:00:13]} 65. Rc6 {[%emt 0:01:31]} Ke7 {[%emt 0:00:16]} 66. Rc7+ {[%emt 0:01:04]} Ke8 {[%emt 0:00:10]} 67. Rc8+ {[%emt 0:00:44]} Ke7 {[%emt 0:00:07]} 68. Rc6 {[%emt 0:00:08]} Rc2+ {[%emt 0:00:45]} 69. Ke3 {[%emt 0:01:30]} Rc3+ {[%emt 0:00:06]} 70. Ke2 {[%emt 0:00:43]} Rc2+ {[%emt 0:00:06]} 71. Ke1 {[%emt 0:01:04]} Rc3 {[%emt 0:00:07]} 72. Ke2 {[%emt 0:00:57]} Rc2+ {[%emt 0:00:09]} 73. Ke3 {[%emt 0:00:36]} Rc3+ {[%emt 0:00:12]} 74. Ke2 {[%emt 0:00:41]} 1/2-1/2

[Event "TUR-ch Veterans 2019"]
[Site "Belek"]
[Date "2019.01.21"]
[Round "2.2"]
[White "Azizoglu, Ayhan"]
[Black "Buker, Muhittin"]
[Result "0-1"]
[ECO "C45"]
[WhiteElo "1861"]
[BlackElo "1978"]
[Annotator "NA"]
[PlyCount "76"]
[EventDate "2019.01.20"]
[EventType "swiss"]
[EventCountry "TUR"]
[SourceTitle "playchess.com"]
[Source "ChessBase"]
[SourceQuality "1"]
[TimeControl "5400+30"]

1. e4 {[%emt 0:00:30]} e5 {[%emt 0:05:30]} 2. Nf3 {[%emt 0:00:30]} Nc6 {[%emt 0:00:30]} 3. d4 {[%emt 0:00:30]} exd4 {[%emt 0:00:30]} 4. Nxd4 {[%emt 0:00:30]} Bc5 {[%emt 0:00:30]} 5. Be3 {[%emt 0:00:30]} Qf6 {[%emt 0:00:30]} 6. c3 {[%emt 0:00:30]} Nge7 {[%emt 0:00:30]} 7. Bc4 {[%emt 0:00:30]} Ne5 {[%emt 0:00:30]} 8. Be2 {[%emt 0:00:30]} Qg6 {[%emt 0:01:30]} 9. O-O {[%emt 0:00:30]} d6 {[%emt 0:02:30]} 10. Bh5 {[%emt 0:04:30] LiveBook: 14 Games} Qxe4 {[%emt 0:09:30]} 11. Nd2 {[%emt 0:04:30]} Qh4 {[%emt 0:04:30] C45: Scotch Game} (11... Qd3 12. Be2 Qg6 13. Bh5 Qd3 14. Be2 Qg6 15. Bh5 {½-½ (15) Khamrakulov,D (2533)-Svetushkin,D (2588) Dresden 2008}) 12. g3 {[%emt 0:23:30]} Qh3 {[%emt 0:03:30]} 13. Ne4 {[%emt 0:06:30]} Bg4 {[%emt 0:11:30]} 14. Qa4+ {[%emt 0:17:30]} N7c6 $146 {[%emt 0:11:30]} ({Predecessor:} 14... c6 15. Bxg4 Nxg4 16. Nf3 Nxe3 17. fxe3 Bxe3+ 18. Kh1 Qh6 19. Qb3 {0-1 (26) Borgmeyer,M (2067)-Mueller,P (1894) Dresden 2008}) 15. Nxc5 {[%emt 0:05:30]} Qxh5 {[%emt 0:01:30]} 16. Nd3 {[%emt 0:16:59]} b5 {[%emt 0:04:30]} 17. Nxe5 {[%emt 0:06:13]} bxa4 {[%emt 0:00:30]} 18. Nexc6 {[%emt 0:00:39]} O-O {[%emt 0:00:30]} 19. f3 {[%emt 0:00:32]} Bd7 {[%emt 0:01:30]} 20. g4 {[%emt 0:00:28]} Qh3 {[%emt 0:01:30]} 21. Ne7+ {[%emt 0:01:27]} Kh8 {[%emt 0:00:30]} 22. Ndf5 {[%emt 0:00:42]} Bxf5 {[%emt 0:01:30]} 23. Nxf5 {[%emt 0:00:03]} Rfe8 {[%emt 0:00:30]} 24. Rae1 {[%emt 0:00:58]} f6 {[%emt 0:01:30]} 25. Re2 {[%emt 0:01:36]} g6 {[%emt 0:07:30]} 26. Ng3 {[%emt 0:00:56]} h5 {[%emt 0:02:30]} 27. Bd4 {[%emt 0:03:02]} Rxe2 {[%emt 0:01:30]} 28. Bxf6+ {[%emt 0:00:28]} Kg8 {[%emt 0:02:30]} 29. Nxe2 {[%emt 0:00:07]} Rf8 {[%emt 0:02:30]} 30. g5 {[%emt 0:01:55]} Re8 {[%emt 0:00:30]} 31. Rf2 {[%emt 0:01:52]} c5 $19 {[%emt 0:00:30]} 32. f4 {[%emt 0:00:10]} Re3 {[%emt 0:01:30]} 33. a3 {[%emt 0:00:18]} h4 {[%emt 0:00:30]} 34. c4 {[%emt 0:00:26]} Qe6 {[%emt 0:00:30]} 35. f5 {[%emt 0:01:04]} gxf5 {[%emt 0:00:30]} 36. Nf4 {[%emt 0:00:26]} Qe4 {[%emt 0:01:38]} 37. Nd5 {[%emt 0:00:47]} Re1+ {[%emt 0:00:06]} 38. Rf1 {[%emt 0:00:15]} Qg4+ {[%emt 0:00:58]} 0-1

[Event "TUR-ch Veterans 2019"]
[Site "Belek"]
[Date "2019.01.21"]
[Round "2.3"]
[White "Taskiran, Erol"]
[Black "Cetinkaya, Vedat Ali"]
[Result "1-0"]
[ECO "E29"]
[WhiteElo "1758"]
[BlackElo "2056"]
[Annotator "NA"]
[PlyCount "69"]
[EventDate "2019.01.20"]
[EventType "swiss"]
[EventCountry "TUR"]
[SourceTitle "playchess.com"]
[Source "ChessBase"]
[SourceQuality "1"]
[TimeControl "5400+30"]

1. d4 {[%emt 0:06:30]} Nf6 {[%emt 0:01:30]} 2. c4 {[%emt 0:00:30]} e6 {[%emt 0:00:30]} 3. Nc3 {[%emt 0:00:30]} Bb4 {[%emt 0:00:30]} 4. Nf3 {[%emt 0:00:30]} O-O {[%emt 0:00:30]} 5. a3 {[%emt 0:00:30]} Bxc3+ {[%emt 0:00:30]} 6. bxc3 {[%emt 0:00:30]} c5 {[%emt 0:00:30]} 7. e3 {[%emt 0:00:30]} Nc6 {[%emt 0:00:30]} 8. Bd3 {[%emt 0:04:30]} b6 {[%emt 0:00:30]} 9. O-O {[%emt 0:00:30]} Ba6 {[%emt 0:00:30] LiveBook: 4 Games} 10. e4 {[%emt 0:11:30] E29: Nimzo-Indian: Sämisch: 5...0-0 6 e3 c5 7 Bd3 Nc6} d6 {[%emt 0:00:30]} (10... Ne8 11. e5 f5 {½-½ (11) Tugui,A (2381)-Dumitrache,D (2452) Mamaia 2012}) 11. e5 {[%emt 0:01:30]} dxe5 {[%emt 0:09:30]} 12. dxe5 {[%emt 0:01:30]} Nd7 $146 {[%emt 0:05:30]} ({Predecessor:} 12... Ng4 13. Bxh7+ Kh8 14. Bd3 Qc7 15. h3 Rad8 16. Qe2 Ngxe5 17. Nxe5 Qxe5 {½-½ (58) Ribeiro,A (1853)-Da Silva,D Pocos de Caldas 2017}) 13. Bxh7+ {[%emt 0:05:30]} Kxh7 {[%emt 0:01:30]} 14. Ng5+ {[%emt 0:00:30]} Kg6 {[%emt 0:21:30]} 15. Qd3+ {[%emt 0:18:30]} f5 {[%emt 0:00:30]} 16. Qg3 $2 {[%emt 0:04:30]} (16. exf6+ $1 $18 Kxf6 17. Qf3+ Ke7 18. Qxc6 Bxc4 19. Rd1) 16... Qe7 {[%emt 0:16:30]} 17. Nxe6+ {[%emt 0:05:30] [#]} (17. Re1 $14) 17... Kh7 $17 {[%emt 0:02:30]} 18. Nxf8+ {[%emt 0:05:30]} Rxf8 {[%emt 0:00:30]} 19. f4 {[%emt 0:05:30]} Nd8 {[%emt 0:08:30]} 20. Be3 {[%emt 0:01:30]} Ne6 {[%emt 0:02:30]} 21. Rfd1 {[%emt 0:01:30]} Rd8 {[%emt 0:04:30]} 22. Rd6 {[%emt 0:02:30]} Ndf8 {[%emt 0:00:30]} 23. Rad1 {[%emt 0:01:52]} g6 {[%emt 0:00:30]} 24. h4 {[%emt 0:03:03]} Bxc4 {[%emt 0:00:30]} 25. Rxd8 {[%emt 0:01:16]} Nxd8 {[%emt 0:00:30]} 26. h5 {[%emt 0:00:54]} gxh5 {[%emt 0:01:30]} 27. Qh3 {[%emt 0:00:24]} Be6 {[%emt 0:01:35]} 28. Qxh5+ {[%emt 0:01:00]} Kg7 {[%emt 0:00:02]} 29. Kf2 {[%emt 0:01:08]} Nf7 {[%emt 0:01:54]} 30. Rh1 {[%emt 0:00:38]} Nd8 {[%emt 0:03:04]} 31. Rh3 {[%emt 0:01:14]} Ng6 {[%emt 0:04:01]} 32. Qh7+ {[%emt 0:01:04]} Kf8 {[%emt 0:00:04]} 33. Qxg6 {[%emt 0:00:21]} Qf7 {[%emt 0:00:15]} 34. Rh8+ {[%emt 0:00:29]} Ke7 {[%emt 0:00:12]} 35. Rh7 {[%emt 0:00:14]} 1-0

[Event "TUR-ch Veterans 2019"]
[Site "Belek"]
[Date "2019.01.21"]
[Round "2.4"]
[White "Guner, Bulent"]
[Black "Yalciner, Suleyman"]
[Result "1-0"]
[ECO "D46"]
[WhiteElo "1987"]
[BlackElo "1491"]
[Annotator "NA"]
[PlyCount "47"]
[EventDate "2019.01.20"]
[EventType "swiss"]
[EventCountry "TUR"]
[SourceTitle "playchess.com"]
[Source "ChessBase"]
[SourceQuality "1"]
[TimeControl "5400+30"]

1. d4 {[%emt 0:00:30]} d5 {[%emt 0:04:30]} 2. c4 {[%emt 0:00:30]} e6 {[%emt 0:00:30]} 3. Nc3 {[%emt 0:00:30]} c6 {[%emt 0:00:30]} 4. e3 {[%emt 0:00:30]} Bd6 {[%emt 0:00:30]} 5. Nf3 {[%emt 0:00:30]} Nf6 {[%emt 0:00:30]} 6. Bd3 {[%emt 0:00:30]} O-O {[%emt 0:00:30]} 7. O-O {[%emt 0:00:30]} Nbd7 {[%emt 0:00:30]} 8. e4 {[%emt 0:00:30]} dxe4 {[%emt 0:00:30]} 9. Nxe4 {[%emt 0:00:30]} Nxe4 {[%emt 0:00:30]} 10. Bxe4 {[%emt 0:00:30]} Nf6 {[%emt 0:00:30]} 11. Bc2 {[%emt 0:00:30]} c5 {[%emt 0:00:30]} 12. Bg5 {[%emt 0:04:30]} cxd4 {[%emt 0:00:30] LiveBook: 11 Games} 13. Qxd4 {[%emt 0:00:30]} Be7 {[%emt 0:01:30] D46: Semi-Slav: 5 e3 Nbd7 6 Bd3, Black avoids the Meran} 14. Qh4 {[%emt 0:09:30]} h6 {[%emt 0:07:30]} 15. Bxh6 {[%emt 0:00:30]} g6 $146 {[%emt 0:30:30]} ({Predecessor:} 15... gxh6 16. Qxh6 Bd6 17. Rad1 {1-0 (17) Paravyan,D (2603)-Alieva,A (2100) Moscow 2018}) 16. Rad1 {[%emt 0:06:30]} Qe8 {[%emt 0:13:30]} 17. Bg5 {[%emt 0:04:30]} Kg7 {[%emt 0:03:30]} 18. Qh6+ {[%emt 0:01:30]} Kg8 {[%emt 0:01:30]} 19. Rd4 {[%emt 0:00:30]} Nh5 {[%emt 0:03:30]} 20. Rh4 {[%emt 0:02:30]} f5 {[%emt 0:01:30]} 21. Bxe7 {[%emt 0:02:30]} Qxe7 {[%emt 0:00:30]} 22. Qxg6+ {[%emt 0:00:00]} Ng7 {[%emt 0:00:30]} 23. Ng5 {[%emt 0:00:00]} Qf6 {[%emt 0:01:30]} 24. Qh7# {[%emt 0:00:30]} 1-0

[Event "TUR-ch Veterans 2019"]
[Site "Belek"]
[Date "2019.01.21"]
[Round "2.5"]
[White "Altinok, Metin"]
[Black "Yasin, Hur"]
[Result "0-1"]
[ECO "B20"]
[WhiteElo "1647"]
[BlackElo "2004"]
[Annotator "NA"]
[PlyCount "66"]
[EventDate "2019.01.20"]
[EventType "swiss"]
[EventCountry "TUR"]
[SourceTitle "playchess.com"]
[Source "ChessBase"]
[SourceQuality "1"]
[TimeControl "5400+30"]

1. e4 {[%emt 0:02:30]} c5 {[%emt 0:07:30]} 2. Nf3 {[%emt 0:00:30]} a6 {[%emt 0:00:30]} 3. a4 {[%emt 0:00:30]} e6 {[%emt 0:00:30]} 4. Nc3 {[%emt 0:00:30]} Nc6 {[%emt 0:00:30]} 5. Bc4 {[%emt 0:00:30]} Nf6 {[%emt 0:00:30]} 6. d3 {[%emt 0:00:30]} d5 {[%emt 0:00:30] B20: Sicilian: Unusual White 2nd moves} 7. Bb3 {[%emt 0:00:30]} (7. Ba2 h6 8. O-O Be7 9. Re1 O-O 10. e5 Nd7 11. Bf4 Re8 12. Bg3 Nf8 13. h4 b6 14. Ne2 {0-1 (47) Xheladini,M (2200)-Riff,J (2506) Germany 2016}) 7... dxe4 {[%emt 0:00:30]} 8. Nxe4 {[%emt 0:00:30]} Nxe4 {[%emt 0:00:30]} 9. dxe4 {[%emt 0:00:30]} Qxd1+ {[%emt 0:00:30]} 10. Kxd1 {[%emt 0:00:30]} Na5 $146 {[%emt 0:01:30]} ({Predecessor:} 10... Be7 11. Ke2 O-O 12. Rd1 e5 13. c3 Bg4 14. Be3 {0-1 (52) Kurcsics,M (2020)-Farkas,G (2141) Hungary 2017}) 11. Ba2 {[%emt 0:00:30]} b5 {[%emt 0:10:30]} 12. Bd2 {[%emt 0:00:30]} Nc6 {[%emt 0:01:30]} 13. Bb3 {[%emt 0:08:30]} Bb7 {[%emt 0:06:30]} 14. axb5 {[%emt 0:00:30]} axb5 {[%emt 0:00:30]} 15. Rxa8+ {[%emt 0:00:30]} Bxa8 {[%emt 0:00:00]} 16. c3 {[%emt 0:00:00]} Na5 {[%emt 0:19:00]} 17. Bc2 {[%emt 0:00:00]} Nc4 {[%emt 0:00:30]} 18. Bc1 {[%emt 0:05:30]} Bc6 {[%emt 0:11:30]} 19. Bd3 {[%emt 0:05:30]} Nd6 {[%emt 0:00:30]} 20. Re1 {[%emt 0:07:30]} Be7 {[%emt 0:01:30]} 21. Ne5 {[%emt 0:09:30]} Bb7 {[%emt 0:00:30]} 22. Bf4 {[%emt 0:01:30]} f6 {[%emt 0:02:30]} 23. Nf3 {[%emt 0:02:30]} e5 {[%emt 0:00:00]} 24. Bc1 {[%emt 0:00:30]} O-O {[%emt 0:01:00]} 25. Ng1 {[%emt 0:01:30]} Rd8 {[%emt 0:00:30]} 26. Kc2 {[%emt 0:01:30]} c4 {[%emt 0:00:30]} 27. Bf1 {[%emt 0:02:30]} Bxe4+ {[%emt 0:02:30]} 28. Rxe4 {[%emt 0:00:30]} Nxe4 {[%emt 0:00:30]} 29. f3 {[%emt 0:00:30]} Nc5 $19 {[%emt 0:01:30]} 30. Ne2 {[%emt 0:01:30]} Nb3 {[%emt 0:01:30]} 31. Ng3 {[%emt 0:01:30]} Bc5 {[%emt 0:03:30]} 32. f4 {[%emt 0:06:30]} Nxc1 {[%emt 0:00:30]} 33. Ne4 {[%emt 0:01:30]} Nb3 {[%emt 0:00:30]} 0-1

[Event "TUR-ch Veterans 2019"]
[Site "Belek"]
[Date "2019.01.21"]
[Round "2.6"]
[White "Korkmaz, Turhan"]
[Black "Marthedal, Anton Mehmet Yildiz"]
[Result "1/2-1/2"]
[ECO "A57"]
[WhiteElo "1977"]
[BlackElo "1885"]
[Annotator "NA"]
[PlyCount "126"]
[EventDate "2019.01.20"]
[EventType "swiss"]
[EventCountry "TUR"]
[SourceTitle "playchess.com"]
[Source "ChessBase"]
[SourceQuality "1"]
[TimeControl "5400+30"]

1. d4 {[%emt 0:13:30]} Nf6 {[%emt 0:00:00]} 2. c4 {[%emt 0:00:30]} c5 {[%emt 0:00:00]} 3. d5 {[%emt 0:00:30]} b5 {[%emt 0:00:30]} 4. b3 {[%emt 0:00:30]} g6 {[%emt 0:00:30]} 5. Bb2 {[%emt 0:00:30]} Bg7 {[%emt 0:00:30]} 6. e4 {[%emt 0:00:30] A57: Benko/Volga Gambit} d6 {[%emt 0:00:30]} 7. cxb5 {[%emt 0:00:30]} O-O {[%emt 0:00:30]} (7... a6 8. Nd2 O-O 9. Ngf3 axb5 10. Bxb5 Nxe4 11. Bxg7 Kxg7 12. Bc4 Nf6 13. O-O Na6 {0-1 (30) Ponomarenko,V (2183)-Moiseev,V (2405) Tula 2018}) 8. Bd3 {[%emt 0:00:30]} a6 {[%emt 0:00:30]} 9. bxa6 {[%emt 0:00:30]} Bxa6 $146 {[%emt 0:00:30]} ({Predecessor:} 9... Nxa6 10. a3 Bb7 11. Nf3 Ng4 12. Bxg7 Kxg7 13. h3 Ne5 14. Nxe5 dxe5 15. Nc3 Qa5 16. Qd2 Nb4 17. Be2 Ba6 18. O-O Bxe2 19. Nxe2 Qb5 20. axb4 cxb4 {1-0 (20) Ruiz Cruz,C (1814)-Galeano Garcia,J (1545) Bogota 2018}) 10. Ne2 {[%emt 0:00:30]} e6 {[%emt 0:04:30]} 11. O-O {[%emt 0:05:30]} exd5 {[%emt 0:00:30]} 12. exd5 {[%emt 0:00:30]} Re8 {[%emt 0:00:30]} 13. Ng3 {[%emt 0:00:30]} Nbd7 {[%emt 0:01:30]} 14. Bxa6 {[%emt 0:04:30]} Rxa6 {[%emt 0:00:00]} 15. Nc3 {[%emt 0:01:30]} Qa8 {[%emt 0:02:00]} 16. a4 {[%emt 0:06:30]} h5 {[%emt 0:08:30]} 17. f3 {[%emt 0:07:30]} Nb6 {[%emt 0:05:30]} 18. Nge4 {[%emt 0:01:30]} Nbxd5 {[%emt 0:05:30]} 19. Nxd5 {[%emt 0:04:30]} Nxd5 {[%emt 0:00:30]} 20. Bxg7 {[%emt 0:00:30]} Kxg7 {[%emt 0:00:30]} 21. Qd2 {[%emt 0:00:30]} f5 {[%emt 0:06:30]} 22. Nc3 {[%emt 0:03:30]} Ne3 {[%emt 0:03:30]} 23. Rfe1 {[%emt 0:00:30]} f4 {[%emt 0:00:30]} 24. Ne4 {[%emt 0:02:30]} Re5 {[%emt 0:01:30]} 25. Qc3 {[%emt 0:06:30]} Kh7 {[%emt 0:06:30]} (25... Nd5 $14 26. Qb2 Kh6) 26. h4 {[%emt 0:05:30]} Qd8 {[%emt 0:17:30]} 27. Ng5+ {[%emt 0:06:30]} Rxg5 {[%emt 0:01:30]} 28. hxg5 {[%emt 0:00:30]} Qxg5 {[%emt 0:00:30]} 29. Rxe3 {[%emt 0:00:30]} fxe3 {[%emt 0:00:00]} 30. Re1 {[%emt 0:00:30]} d5 {[%emt 0:05:00]} 31. Qxe3 {[%emt 0:02:30]} Qxe3+ {[%emt 0:00:30]} 32. Rxe3 {[%emt 0:00:00]} Kg7 {[%emt 0:00:30]} 33. Re5 {[%emt 0:03:00]} Rd6 {[%emt 0:01:30]} 34. Kf2 {[%emt 0:01:30]} Kf6 {[%emt 0:00:30]} 35. f4 {[%emt 0:00:00]} Rb6 {[%emt 0:05:30]} 36. Rxd5 {[%emt 0:06:59]} Rxb3 {[%emt 0:00:30]} 37. a5 {[%emt 0:01:23]} c4 {[%emt 0:01:30]} 38. Rc5 {[%emt 0:00:47]} c3 {[%emt 0:00:00]} 39. Ke3 {[%emt 0:01:30]} c2+ {[%emt 0:06:04]} 40. Kd2 {[%emt 0:00:41]} Rg3 {[%emt 0:02:13]} 41. Kxc2 {[%emt 0:02:02]} Rxg2+ {[%emt 0:03:10]} 42. Kb3 {[%emt 0:00:13]} Rg1 {[%emt 0:02:53]} 43. Rc2 {[%emt 0:02:51]} Re1 {[%emt 0:02:28]} 44. a6 {[%emt 0:02:50]} Kf5 {[%emt 0:00:48]} 45. Rc4 {[%emt 0:00:29]} h4 {[%emt 0:00:23]} 46. Rb4 {[%emt 0:00:18]} Ra1 {[%emt 0:02:23]} 47. Ra4 {[%emt 0:02:33]} Rb1+ {[%emt 0:00:07]} 48. Kc2 {[%emt 0:00:24]} Rb8 {[%emt 0:00:09]} 49. Kd3 {[%emt 0:00:27]} h3 {[%emt 0:01:17]} 50. Ke3 {[%emt 0:00:41]} h2 {[%emt 0:00:58]} 51. Ra1 {[%emt 0:00:04]} Kg4 {[%emt 0:00:10]} 52. a7 $19 {[%emt 0:00:37]} Re8+ {[%emt 0:00:06]} 53. Kf2 {[%emt 0:00:12]} Rc8 {[%emt 0:01:35]} 54. Kg2 {[%emt 0:00:21]} Ra8 {[%emt 0:00:10]} 55. Ra4 {[%emt 0:00:34]} g5 {[%emt 0:01:58]} 56. fxg5+ {[%emt 0:00:10]} Kxg5 {[%emt 0:00:02]} 57. Kxh2 {[%emt 0:00:07]} Kf6 {[%emt 0:00:12]} 58. Kg3 {[%emt 0:00:39]} Ke6 {[%emt 0:00:11]} 59. Kf4 {[%emt 0:00:58]} Kd6 {[%emt 0:00:13]} 60. Kf5 {[%emt 0:00:19]} Kc6 {[%emt 0:00:09]} 61. Ke6 {[%emt 0:00:14]} Kb6 {[%emt 0:00:12]} 62. Kd6 {[%emt 0:00:19]} Rd8+ {[%emt 0:00:51]} 63. Ke7 {[%emt 0:00:19]} Ra8 {[%emt 0:00:00]} 1/2-1/2

[Event "TUR-ch Veterans 2019"]
[Site "Belek"]
[Date "2019.01.21"]
[Round "2.7"]
[White "Cinar Corlulu, Nilufer"]
[Black "Hatipoglu, Metin"]
[Result "1/2-1/2"]
[ECO "B22"]
[WhiteElo "1970"]
[BlackElo "1680"]
[Annotator "NA"]
[PlyCount "83"]
[EventDate "2019.01.20"]
[EventType "swiss"]
[EventCountry "TUR"]
[SourceTitle "playchess.com"]
[Source "ChessBase"]
[SourceQuality "1"]
[TimeControl "5400+30"]

1. e4 {[%emt 0:04:30]} c5 {[%emt 0:09:30]} 2. Nf3 {[%emt 0:00:30]} e6 {[%emt 0:00:30]} 3. c3 {[%emt 0:00:30]} d5 {[%emt 0:00:30]} 4. exd5 {[%emt 0:00:30]} exd5 {[%emt 0:00:30]} 5. d4 {[%emt 0:00:30]} Nc6 {[%emt 0:00:30]} 6. Bb5 {[%emt 0:00:30]} a6 {[%emt 0:00:30]} 7. Bxc6+ {[%emt 0:00:30] B22: Sicilian: 2 c3} bxc6 {[%emt 0:00:30]} 8. O-O {[%emt 0:04:30] LiveBook: 9 Games} Nf6 {[%emt 0:04:30]} 9. Re1+ {[%emt 0:00:30]} Be6 {[%emt 0:00:30]} 10. Qa4 $146 {[%emt 0:05:30]} ({Predecessor:} 10. Ng5 Qd7 11. Qe2 cxd4 12. cxd4 Bd6 13. Nxe6 fxe6 14. Nc3 Kf7 15. Bg5 {1-0 (72) Plat,V (2567)-Valsecchi,A (2501) Katowice 2017}) 10... Qb6 {[%emt 0:03:30]} 11. Ng5 {[%emt 0:06:30]} Kd7 {[%emt 0:00:30]} 12. Qc2 {[%emt 0:08:30]} Re8 {[%emt 0:06:30]} 13. dxc5 {[%emt 0:02:30]} Bxc5 {[%emt 0:01:30]} 14. b4 {[%emt 0:00:30]} Bd6 {[%emt 0:01:30]} 15. Nxe6 {[%emt 0:04:30]} (15. Be3 $16 Qc7 16. h3) 15... fxe6 {[%emt 0:04:30]} 16. Nd2 {[%emt 0:00:30]} Bxh2+ {[%emt 0:01:30]} 17. Kf1 {[%emt 0:05:30]} Ng4 {[%emt 0:09:30]} (17... Rhf8 $5 {[%cal Rf6h5]} 18. Nf3 Bd6 $15) 18. Nf3 {[%emt 0:02:30]} Rhf8 {[%emt 0:01:30]} 19. Be3 {[%emt 0:03:30]} Nxe3+ {[%emt 0:06:30]} 20. Rxe3 {[%emt 0:00:30]} Bf4 {[%emt 0:02:30]} 21. Re2 {[%emt 0:02:30]} g6 {[%emt 0:02:30]} 22. Rd1 {[%emt 0:03:30]} Bd6 {[%emt 0:01:30]} 23. Kg1 {[%emt 0:06:30]} Qd8 {[%emt 0:04:30]} 24. Qd3 {[%emt 0:01:30]} Rf4 {[%emt 0:02:30]} 25. Ne5+ {[%emt 0:08:30]} (25. g3 $14 Rff8 26. c4) 25... Bxe5 {[%emt 0:04:30]} 26. Rxe5 {[%emt 0:00:00]} Rxf2 {[%emt 0:02:30]} 27. Qxa6 {[%emt 0:02:00]} Qc7 {[%emt 0:09:13]} 28. Rde1 {[%emt 0:02:30]} Ref8 {[%emt 0:00:40]} 29. Rxe6 {[%emt 0:05:31]} Rf1+ $1 {[%emt 0:03:17]} 30. Rxf1 {[%emt 0:03:53]} Rxf1+ {[%emt 0:01:05]} 31. Qxf1 {[%emt 0:00:07]} Kxe6 {[%emt 0:00:36]} 32. Qe2+ {[%emt 0:00:14]} Kd6 {[%emt 0:01:46]} 33. Qf2 {[%emt 0:00:29]} Qd8 {[%emt 0:04:08]} 34. Qf4+ {[%emt 0:00:29]} Ke6 {[%emt 0:00:44]} 35. Qg4+ {[%emt 0:00:48]} Kf7 $16 {[%emt 0:00:23]} 36. Qf4+ {[%emt 0:00:24]} Kg8 {[%emt 0:00:39]} 37. a4 {[%emt 0:01:23]} Qe7 {[%emt 0:00:50]} 38. Qd4 {[%emt 0:02:14]} Qe1+ {[%emt 0:00:30]} 39. Kh2 {[%emt 0:00:19]} h5 {[%emt 0:00:11]} 40. Qf6 {[%emt 0:00:52]} Kh7 {[%emt 0:01:50]} 41. Qf7+ {[%emt 0:00:40]} Kh6 {[%emt 0:00:26]} 42. Qf4+ {[%emt 0:00:22]} 1/2-1/2